bitfinex/quotes_ETHUSD_20250318
["timestamp","ask_amount","ask_price","bid_price","bid_amount"]
[1742315689624,10.92295729,1892.8,1892.6,10.56729]
[1742315690153,15.64880958,1892.8,1892.6,10.56729]
[1742315690347,0.39627977,1892.8,1892.7,6.03915]
[1742315690552,5.67326321,1893.3,1892.9,5.28265]
[1742315690553,5.9962,1893.2,1892.9,5.28265]
[1742315690729,5.9962,1893.2,1893.0,5.28259]
[1742315690932,0.7792,1893.2,1893.0,5.28241]
[1742315691135,5.9952,1893.2,1893.0,5.28241]
[1742315691443,5.9952,1893.2,1893.1,5.28234]
[1742315691680,10.72105229,1893.2,1893.1,5.28234]
[1742315692323,9.94185229,1893.2,1893.1,5.28234]
[1742315695159,4.72585229,1893.2,1893.1,5.28234]
[1742315698157,4.72585229,1893.2,1893.1,6.414865]
[1742315699884,4.72585229,1893.2,1893.1,5.28234]
[1742315700986,0.39146321,1893.3,1893.2,5.28206]
[1742315701186,4.72585229,1893.3,1893.2,5.28206]
[1742315701384,4.72585229,1893.5,1893.3,0.7644]
[1742315701553,5.192,1893.7,1893.6,5.28094]
[1742315701853,1.86723564,1894.0,1893.9,5.2801]
[1742315702059,1.86723564,1894.0,1893.8,10.56053]
[1742315702060,5.50295229,1894.0,1893.8,10.56053]
[1742315702263,4.72585229,1893.9,1893.8,10.56053]
[1742315702655,4.72585229,1893.9,1893.8,11.616583]
[1742315702856,4.72585229,1893.9,1893.8,10.56053]
[1742315703989,4.72585229,1893.9,1893.8,5.2802]
[1742315704723,5.12350043,1894.0,1893.9,5.27991]
[1742315704858,0.39764814,1894.0,1893.9,6.10931]
[1742315705062,5.9455,1894.3,1894.2,5.27927]
[1742315705063,5.192,1894.3,1894.2,5.27927]
[1742315705302,4.72585229,1894.3,1894.2,5.27927]
[1742315705505,1.0266126,1894.5,1894.3,5.27891]
[1742315705810,1.09013564,1894.6,1894.4,5.27871]
[1742315705955,4.72585229,1894.5,1894.4,5.27871]
[1742315706866,0.39125496,1894.6,1894.5,5.27843]
[1742315707024,5.11710725,1894.6,1894.5,5.27843]
[1742315707204,4.72585229,1894.6,1894.5,5.27843]
[1742315707575,4.72585229,1894.6,1894.5,6.06243]
[1742315708410,4.72585229,1894.6,1894.5,5.27843]
[1742315708586,5.11325545,1894.6,1894.5,5.27843]
[1742315709590,5.11325545,1894.6,1894.5,5.24843]
[1742315712318,5.11325545,1894.6,1894.5,6.301144]
[1742315712715,5.9987,1894.9,1894.5,6.301144]
[1742315712716,4.72585229,1894.7,1894.6,5.27815]
[1742315712927,5.9313058,1894.7,1894.5,5.24843]
[1742315713212,4.72585229,1894.6,1894.4,10.5573]
[1742315713383,4.72585229,1894.5,1894.4,5.27861]
[1742315713585,4.72585229,1894.5,1894.3,5.27888]
[1742315713809,4.72585229,1894.4,1894.3,5.27888]
[1742315713986,0.39145351,1894.7,1894.5,5.2782]
[1742315714189,11.28243,1894.9,1894.5,5.2782]
[1742315714621,0.8312,1894.6,1894.2,12.24121]
[1742315714782,0.8312,1894.6,1894.4,5.27869]
[1742315714987,1.442118,1894.6,1894.4,5.27869]
[1742315715921,4.72585229,1894.5,1894.4,5.27869]
[1742315716107,4.72585229,1894.5,1894.3,5.2789]
[1742315716426,4.72585229,1894.4,1894.3,5.2789]
[1742315716923,5.12992624,1894.4,1894.3,5.2789]
[1742315718021,4.72585229,1894.4,1894.3,5.2789]
[1742315718220,4.72585229,1894.4,1894.3,6.0854]
[1742315718803,4.72585229,1894.5,1894.4,5.27871]
[1742315719129,5.58390398,1894.9,1894.7,5.27788]
[1742315719290,4.72585229,1894.8,1894.7,5.27788]
[1742315719487,0.8086,1895.2,1895.0,5.27684]
[1742315720417,4.72585229,1895.1,1895.0,10.55376]
[1742315720925,4.72585229,1895.1,1895.0,5.27684]
[1742315721228,5.52895229,1895.1,1894.8,5.27744]
[1742315721546,4.72585229,1894.9,1894.8,5.27744]
[1742315721748,4.72585229,1894.9,1894.6,5.27814]
[1742315721926,4.72585229,1894.7,1894.6,5.27805]
[1742315722294,4.72585229,1894.7,1894.5,5.27829]
[1742315722492,4.72585229,1894.6,1894.5,5.27829]
[1742315723299,5.12983001,1894.6,1894.5,5.27829]
[1742315725798,4.72585229,1894.6,1894.5,6.413197]
[1742315725993,5.189,1895.0,1894.8,5.27736]
[1742315726194,4.72585229,1894.9,1894.8,10.55472]
[1742315726923,4.72585229,1894.9,1894.8,5.27736]
[1742315727515,4.72585229,1894.9,1894.7,5.27784]
[1742315727719,4.72585229,1894.9,1894.5,5.27833]
[1742315727720,0.7534,1894.8,1894.5,5.27833]
[1742315727935,4.72585229,1894.6,1894.5,5.27833]
[1742315729628,5.12800376,1894.6,1894.5,5.27833]
[1742315730321,6.41573148,1895.1,1894.6,5.27815]
[1742315730627,4.72585229,1894.8,1894.7,5.27763]
[1742315735040,4.72585229,1894.8,1894.6,5.27804]
[1742315735253,4.72585229,1894.7,1894.5,5.27841]
[1742315735460,4.72585229,1894.6,1894.5,5.27841]
[1742315736147,4.72585229,1894.6,1894.4,10.55719]
[1742315736325,4.72585229,1894.5,1894.4,10.55719]
[1742315737049,4.72585229,1894.5,1894.4,5.27859]
[1742315737344,5.55585229,1894.5,1894.3,5.27886]
[1742315737548,9.45170458,1894.4,1894.1,5.27949]
[1742315737724,4.72585229,1894.2,1894.0,5.27974]
[1742315738048,4.72585229,1894.2,1894.1,5.27955]
[1742315739046,0.83,1894.5,1894.4,5.27871]
[1742315739217,4.72585229,1894.5,1894.4,5.27871]
[1742315741752,10.7234366,1894.5,1894.2,5.27923]
[1742315741953,4.72585229,1894.3,1894.2,5.27927]
[1742315742753,4.72585229,1894.3,1894.0,5.2797]
[1742315742950,4.72585229,1894.1,1894.0,5.2797]
[1742315743450,4.72585229,1894.1,1894.0,6.0926]
[1742315743628,4.72585229,1894.3,1894.0,6.0926]
[1742315743833,4.72585229,1894.2,1894.1,5.27955]
[1742315745131,4.72585229,1894.2,1894.1,6.416765]
[1742315745725,0.39246793,1894.6,1894.2,5.27917]
[1742315745926,5.189,1894.6,1894.5,5.27843]
[1742315746325,5.9774,1894.8,1894.6,5.27815]
[1742315746526,5.32359229,1894.7,1894.6,5.27815]
[1742315746721,5.32359229,1894.7,1894.5,5.27832]
[1742315746930,5.32359229,1894.7,1894.4,5.27865]
[1742315747261,4.72585229,1894.5,1894.4,5.27865]
[1742315747628,5.54895229,1894.5,1894.4,5.27865]
[1742315747828,6.10384752,1894.5,1894.4,5.27865]
[1742315748852,4.72585229,1894.5,1894.4,5.27865]
[1742315752329,4.72585229,1894.5,1894.3,10.55761]
[1742315752530,4.72585229,1894.5,1894.3,10.55756]
[1742315752771,4.72585229,1894.5,1894.3,5.27872]
[1742315752977,0.7885,1894.4,1894.2,5.27927]
[1742315753178,4.72585229,1894.3,1894.2,10.55844]
[1742315753461,4.72585229,1894.3,1894.1,10.55893]
[1742315753661,4.72585229,1894.2,1894.1,10.55884]
[1742315754155,4.72585229,1894.2,1894.1,5.27942]
[1742315754357,4.72585229,1894.2,1894.0,5.27966]
[1742315754560,5.19843752,1894.2,1893.9,16.7001]
[1742315754863,4.72585229,1894.0,1893.9,11.42]
[1742315755541,0.40188567,1894.1,1894.0,5.27983]
[1742315755743,4.72585229,1894.2,1894.1,5.27955]
[1742315759940,5.11561375,1894.2,1894.1,5.27955]
[1742315760140,5.11561375,1894.2,1894.1,6.418588]
[1742315760341,0.38976146,1894.2,1894.1,6.418588]
[1742315760558,4.72585229,1894.4,1894.3,5.27899]
[1742315761494,4.72585229,1894.4,1894.3,6.07889]
[1742315764072,0.7647,1895.1,1894.6,5.27804]
[1742315764260,5.9537,1895.1,1894.9,5.27727]
[1742315764972,4.72585229,1895.0,1894.9,5.27714]
[1742315765645,5.12672777,1895.1,1895.0,5.27704]
[1742315765846,4.72585229,1895.1,1895.0,5.27704]
[1742315767075,0.7537,1895.0,1894.7,11.4177]
[1742315767290,4.72585229,1894.8,1894.7,11.4177]
[1742315768104,4.72585229,1894.8,1894.6,5.27814]
[1742315768302,5.19843752,1894.7,1894.5,5.27833]
[1742315768464,5.188,1894.9,1894.6,5.27815]
[1742315769488,5.188,1894.9,1894.5,5.27833]
[1742315769489,5.188,1894.9,1894.8,5.2776]
[1742315769775,9.91385229,1894.9,1894.8,5.2776]
[1742315770096,9.91385229,1894.9,1894.7,5.27781]
[1742315770293,5.71723752,1894.8,1894.6,5.27798]
[1742315770462,4.72585229,1894.7,1894.6,5.27798]
[1742315771790,4.72585229,1894.7,1894.6,6.07738]
[1742315772101,4.72585229,1894.8,1894.7,5.27778]
[1742315774116,6.0617386,1895.1,1895.0,5.27704]
[1742315774117,5.12700566,1895.1,1895.0,5.27704]
[1742315774806,4.72585229,1895.2,1895.0,5.27704]
[1742315774962,5.187,1895.5,1895.3,5.27603]
[1742315775162,5.187,1895.5,1895.0,5.32980444]
[1742315775163,4.72585229,1895.4,1895.2,5.27633]
[1742315775365,4.72585229,1895.3,1895.2,5.27633]
[1742315775565,5.19843752,1895.3,1895.2,5.27633]
[1742315776090,0.7668,1895.2,1895.0,5.27693]
[1742315776391,4.72585229,1895.1,1895.0,5.27693]
[1742315776590,4.72585229,1895.1,1894.7,0.7822]
[1742315776909,11.16434011,1895.2,1894.8,5.2775]
[1742315777074,6.30343401,1895.1,1894.9,5.2773]
[1742315777273,4.72585229,1895.0,1894.9,5.2773]
[1742315777484,4.72585229,1895.0,1894.8,5.2775]
[1742315777682,4.72585229,1894.9,1894.8,5.2775]
[1742315778781,4.72585229,1894.9,1894.7,5.27786]
[1742315778782,5.19843752,1894.9,1894.7,5.27786]
[1742315778962,4.72585229,1894.8,1894.7,5.27786]
[1742315780680,4.72585229,1894.8,1894.6,5.27815]
[1742315781013,5.19843752,1894.7,1894.5,5.27839]
[1742315781225,4.72585229,1894.6,1894.5,10.55667]
[1742315782090,5.11665302,1894.6,1894.5,10.55667]
[1742315782672,5.11665302,1894.6,1894.5,5.27828]
[1742315783072,5.11665302,1894.6,1894.4,5.27866]
[1742315783318,4.72585229,1894.5,1894.2,11.41914]
[1742315783491,4.72585229,1894.3,1894.2,5.27914]
[1742315788085,4.72585229,1894.4,1894.3,5.27894]
[1742315788390,4.72585229,1894.5,1894.4,5.2786]
[1742315788585,5.187,1894.7,1894.5,5.27843]
[1742315788918,4.72585229,1894.6,1894.5,5.27843]
[1742315789464,4.72585229,1894.6,1894.4,5.2786]
[1742315789465,4.72585229,1894.6,1894.3,10.55786]
[1742315789714,4.72585229,1894.4,1894.3,10.55786]
[1742315790116,4.72585229,1894.4,1894.3,5.27889]
[1742315790926,4.72585229,1894.4,1894.1,11.41952]
[1742315790927,15.28034981,1894.4,1894.1,11.41952]
[1742315791086,4.72585229,1894.2,1894.1,11.41952]
[1742315791495,4.72585229,1894.3,1894.1,16.69897]
[1742315791701,4.72585229,1894.3,1894.2,6.949167]
[1742315792708,4.72585229,1894.4,1894.3,6.09033]
[1742315794602,4.72585229,1894.4,1894.3,5.27883]
[1742315794811,0.61500336,1895.2,1895.1,5.27676]
[1742315795145,4.72585229,1895.5,1895.2,9.08798]
[1742315795353,5.81351836,1895.3,1895.1,5.27676]
[1742315795505,5.81351836,1895.3,1895.1,5.27667]
[1742315795703,5.52375229,1895.3,1895.1,5.27667]
[1742315795907,5.52375229,1895.3,1895.1,5.27658]
[1742315796340,6.07612752,1895.3,1895.0,5.27701]
[1742315796553,4.72585229,1895.1,1895.0,10.55396]
[1742315796913,4.72585229,1895.1,1894.9,5.27721]
[1742315797121,4.72585229,1895.0,1894.8,5.2775]
[1742315797308,5.19843752,1894.9,1894.8,5.2775]
[1742315797515,5.98123752,1894.9,1894.8,5.2775]
[1742315798040,5.98123752,1894.9,1894.7,5.27786]
[1742315798331,4.72585229,1894.8,1894.7,5.27786]
[1742315798763,4.72585229,1894.8,1894.6,5.27798]
[1742315799047,4.72585229,1894.7,1894.6,5.27798]
[1742315799207,4.72585229,1894.7,1894.5,10.55668]
[1742315799406,4.72585229,1894.6,1894.4,5.2787]
[1742315799608,4.72585229,1894.5,1894.4,5.27859]
[1742315802625,4.72585229,1894.5,1894.4,5.27859]
[1742315804466,4.72585229,1894.6,1894.5,5.27828]
[1742315812957,4.72585229,1894.7,1894.6,5.27815]
[1742315814466,4.72585229,1894.7,1894.6,6.333793]
[1742315814663,5.11974534,1894.8,1894.7,5.27788]
[1742315814863,0.39389305,1894.8,1894.7,5.27788]
[1742315815064,9.93885229,1894.9,1894.8,5.2776]
[1742315819264,9.93885229,1894.9,1894.5,6.03084]
[1742315819447,4.72585229,1894.6,1894.4,5.27862]
[1742315819767,7.04290523,1894.8,1894.5,10.55667]
[1742315819768,2.1555075,1894.8,1894.5,10.55667]
[1742315820149,2.1555075,1894.8,1894.6,5.27815]
[1742315820545,2.1555075,1894.8,1894.6,5.27802]
[1742315820750,4.72585229,1894.7,1894.6,5.27802]
[1742315820967,0.39022227,1894.8,1894.7,5.27788]
[1742315821161,4.72585229,1894.8,1894.7,5.27788]
[1742315822872,5.48135229,1894.8,1894.6,5.27796]
[1742315823077,4.72585229,1894.7,1894.6,5.27796]
[1742315825573,4.72585229,1894.7,1894.5,5.27832]
[1742315825775,4.72585229,1894.7,1894.3,16.69774]
[1742315825776,5.19843752,1894.6,1894.3,16.69774]
[1742315825984,4.72585229,1894.4,1894.3,16.69774]
[1742315826277,4.72585229,1894.4,1894.3,11.41875]
[1742315826840,4.72585229,1894.4,1894.2,5.27926]
[1742315826841,10.22720458,1894.4,1894.1,5.27939]
[1742315827075,10.00521229,1894.2,1893.9,5.28007]
[1742315827271,4.72585229,1894.0,1893.9,5.28]
[1742315829280,4.72585229,1894.1,1894.0,5.27956]
[1742315832680,0.39310081,1894.3,1894.2,5.27927]
[1742315832882,5.188,1894.6,1894.5,5.27843]
[1742315833082,0.7599,1894.8,1894.6,5.27795]
[1742315833275,0.7599,1894.8,1894.7,40.27788]
[1742315833678,5.188,1894.9,1894.7,40.27788]
[1742315833865,4.72585229,1894.8,1894.7,40.27788]
[1742315834059,5.11942926,1894.8,1894.7,40.27788]
[1742315835256,0.39357697,1894.8,1894.7,44.19667108]
[1742315835580,4.72585229,1894.9,1894.8,5.2776]
[1742315836782,4.72585229,1894.9,1894.8,40.2776]
[1742315837371,4.72585229,1894.9,1894.8,44.833148]
[1742315837774,0.40239195,1895.0,1894.9,5.27732]
[1742315838066,4.72585229,1895.0,1894.9,5.27732]
[1742315838784,5.2754,1895.6,1894.9,5.27732]
[1742315838785,6.02829,1895.7,1895.0,0.773]
[1742315838991,4.72585229,1895.1,1895.0,0.773]
[1742315839180,5.12673537,1895.1,1895.0,10.155066]
[1742315839510,5.12673537,1895.1,1894.7,5.188]
[1742315839511,0.7651,1895.0,1894.6,12.17682]
[1742315839802,4.72585229,1894.7,1894.6,5.27815]
[1742315841468,5.51165229,1894.7,1894.5,40.27839]
[1742315841674,4.72585229,1894.6,1894.5,5.27839]
[1742315841869,4.72585229,1894.6,1894.4,5.2787]
[1742315842075,4.72585229,1894.5,1894.4,5.2787]
[1742315842606,4.72585229,1894.5,1894.4,40.2787]
[1742315844397,4.72585229,1894.5,1894.4,35.0]
[1742315844600,11.25298981,1894.5,1893.9,5.28001]
[1742315844804,4.72585229,1894.0,1893.8,5.28035]
[1742315844983,4.72585229,1893.9,1893.7,5.2805]
[1742315845184,0.8171,1894.0,1893.8,40.28038]
[1742315845492,4.72585229,1893.9,1893.8,40.28038]
[1742315846785,5.12863249,1893.9,1893.8,40.28038]
[1742315847419,5.12863249,1893.9,1893.8,38.78038]
[1742315847583,5.12863249,1893.9,1893.8,5.28038]
[1742315848216,5.12863249,1893.9,1893.7,5.2805]
[1742315848517,5.12863249,1893.9,1893.8,40.28038]
[1742315854590,5.12863249,1893.9,1893.8,5.28038]
[1742315854790,5.72320574,1893.9,1893.6,5.28084]
[1742315854989,4.72585229,1893.7,1893.5,10.56233]
[1742315855321,0.55,1893.5,1893.3,5.28169]
[1742315855525,4.72585229,1893.4,1893.3,5.28164]
[1742315857186,5.13018967,1893.4,1893.3,5.28164]
[1742315857404,5.13018967,1893.4,1893.2,5.28202]
[1742315857607,0.40433738,1893.4,1893.3,5.28178]
[1742315857920,0.55,1893.5,1893.3,10.56342]
[1742315858719,0.55,1893.5,1893.3,5.28164]
[1742315858901,1.10408267,1893.5,1893.3,5.28164]
[1742315859092,4.72585229,1893.4,1893.3,5.28164]
[1742315859328,4.72585229,1893.4,1893.2,5.28194]
[1742315859626,4.72585229,1893.3,1893.2,5.28194]
[1742315859829,4.72585229,1893.4,1893.3,6.03428]
[1742315860120,4.72585229,1893.6,1893.5,5.28122]
[1742315860423,4.72585229,1893.6,1893.5,40.28122]
[1742315860629,4.72585229,1893.7,1893.5,40.28122]
[1742315860803,4.72585229,1893.7,1893.6,6.03374]
[1742315861226,4.72585229,1893.7,1893.6,5.28094]
[1742315861818,5.19843752,1893.7,1893.5,5.28111]
[1742315861996,4.72585229,1893.6,1893.5,10.56213]
[1742315862516,0.4027802,1893.9,1893.7,5.28044]
[1742315862715,5.19,1893.9,1893.7,10.5609]
[1742315862920,5.19,1893.9,1893.7,5.28044]
[1742315863227,5.19,1893.9,1893.2,12.17479]
[1742315863228,0.7965,1893.7,1893.5,5.28111]
[1742315863608,4.72585229,1893.6,1893.4,10.56288]
[1742315863808,4.72585229,1893.5,1893.4,5.28141]
[1742315864719,5.12762523,1893.5,1893.4,5.28141]
[1742315865725,0.40177294,1893.5,1893.4,5.28141]
[1742315865932,4.72585229,1893.5,1893.4,5.28141]
[1742315866298,4.72585229,1893.5,1893.4,6.337717]
[1742315867900,4.72585229,1893.5,1893.4,5.28141]
[1742315868651,4.72585229,1893.5,1893.3,5.28166]
[1742315868849,4.72585229,1893.4,1893.2,5.28197]
[1742315869352,0.7975,1893.5,1893.3,10.56345]
[1742315869520,0.7975,1893.5,1893.3,5.28167]
[1742315869716,1.38950812,1893.5,1893.3,5.28167]
[1742315870151,1.38950812,1893.5,1893.3,10.56329]
[1742315870553,1.38950812,1893.5,1893.3,5.28162]
[1742315871108,4.72585229,1893.4,1893.2,5.282]
[1742315871310,4.72585229,1893.3,1893.2,5.282]
[1742315871746,4.72585229,1893.3,1892.9,5.28264]
[1742315871747,10.99937752,1893.3,1892.9,5.28264]
[1742315871900,4.72585229,1893.0,1892.9,5.28264]
[1742315872602,5.12672722,1893.0,1892.9,5.28264]
[1742315875031,5.12672722,1893.0,1892.8,5.28312]
[1742315875204,5.23852501,1892.9,1892.8,5.28312]
[1742315875405,4.72585229,1892.9,1892.8,5.28312]
[1742315875601,4.72585229,1892.9,1892.7,5.28333]
[1742315875844,5.19,1893.0,1892.9,5.28289]
[1742315876048,5.19,1893.0,1892.8,5.28317]
[1742315876272,5.19,1893.0,1892.8,10.56619]
[1742315876548,5.709,1893.0,1892.9,5.28289]
[1742315876746,10.43485229,1893.0,1892.9,5.28289]
[1742315876916,10.43485229,1893.0,1892.8,5.28302]
[1742315877118,4.72585229,1892.9,1892.8,5.28302]
[1742315877632,5.55135229,1892.9,1892.7,5.28342]
[1742315877837,5.55135229,1892.9,1892.3,5.28443]
[1742315877838,5.83354,1892.7,1892.3,5.28443]
[1742315878044,4.72585229,1892.4,1892.3,5.23443]
[1742315879950,5.12377579,1892.4,1892.3,5.23443]
[1742315881116,5.87747579,1892.4,1892.3,5.23443]
[1742315881445,5.12377579,1892.4,1892.3,5.23443]
[1742315881770,5.12377579,1892.4,1892.3,5.99573]
[1742315883278,4.72585229,1892.4,1892.3,5.99573]
[1742315883456,4.72585229,1892.4,1892.3,7.123776]
[1742315884341,4.72585229,1892.4,1892.3,5.99573]
[1742315886972,4.72585229,1892.4,1892.3,5.23443]
[1742315889837,4.72585229,1892.5,1892.4,6.04797]
[1742315890038,4.72585229,1892.6,1892.5,5.28401]
[1742315890273,4.72585229,1892.6,1892.5,6.417208]
[1742315892072,0.39490835,1892.8,1892.5,6.417208]
[1742315892073,4.72585229,1892.7,1892.6,5.28362]
[1742315892233,5.192,1893.0,1892.8,5.28293]
[1742315892433,0.7838,1893.1,1892.9,10.56562]
[1742315892638,5.192,1893.0,1892.9,5.28273]
[1742315893073,5.78958,1893.0,1892.8,10.56616]
[1742315893376,5.78958,1893.0,1892.8,5.28305]
[1742315893564,4.72585229,1892.9,1892.8,5.28305]
[1742315896466,4.72585229,1892.9,1892.6,5.28363]
[1742315896788,4.72585229,1892.7,1892.6,10.56723]
[1742315897448,4.72585229,1892.7,1892.5,5.2839]
[1742315897648,4.72585229,1892.6,1892.3,6.14]
[1742315897865,5.192,1892.6,1892.4,5.28406]
[1742315898070,5.66458523,1892.6,1892.4,5.28406]
[1742315898272,5.66458523,1892.6,1892.4,10.56821]
[1742315899346,5.66458523,1892.6,1892.5,5.28401]
[1742315899548,9.91785229,1892.6,1892.5,5.28401]
[1742315899748,4.72585229,1892.7,1892.6,5.28373]
[1742315903088,5.58925308,1893.0,1892.7,5.28338]
[1742315903089,4.72585229,1892.8,1892.7,5.28338]
[1742315904351,5.192,1893.0,1892.9,5.28289]
[1742315904563,9.91785229,1893.0,1892.9,5.28289]
[1742315904992,10.98846752,1893.0,1892.9,5.28289]
[1742315905171,10.98846752,1893.0,1892.8,10.56608]
[1742315905363,4.72585229,1892.9,1892.8,10.56608]
[1742315906157,4.72585229,1892.9,1892.8,5.28302]
[1742315906958,4.72585229,1892.9,1892.7,5.28335]
[1742315907154,5.77150501,1892.9,1892.7,10.56668]
[1742315907386,5.77150501,1892.9,1892.7,5.28333]
[1742315907559,0.774,1892.8,1892.7,5.28333]
[1742315908178,5.77150501,1892.9,1892.8,5.28317]
[1742315908492,4.72585229,1892.9,1892.8,5.28317]
[1742315909899,4.72585229,1892.9,1892.7,5.28333]
[1742315910109,4.72585229,1892.8,1892.7,5.28333]
[1742315910615,6.06037,1892.7,1892.4,11.4241]
[1742315910913,6.06037,1892.7,1892.3,5.28454]
[1742315910914,5.28472,1892.3,1892.0,0.8187]
[1742315911117,5.28541,1892.0,1891.5,5.28663]
[1742315911265,0.55,1892.0,1891.7,10.5722]
[1742315911465,0.55,1892.0,1891.7,5.28607]
[1742315911694,0.55,1892.0,1891.7,10.57215]
[1742315911898,1.23823134,1892.0,1891.7,10.57215]
[1742315912065,0.8146,1891.7,1891.6,5.28635]
[1742315912277,10.73145229,1891.7,1891.6,5.28635]
[1742315913980,11.12523972,1891.7,1891.6,5.28635]
[1742315914469,10.31063972,1891.7,1891.6,5.28635]
[1742315915290,16.41899933,1891.7,1891.3,5.28713]
[1742315915596,6.40678704,1891.7,1891.4,10.57401]
[1742315915766,6.40678704,1891.7,1891.5,5.2868]
[1742315915963,6.40678704,1891.7,1891.5,5.28664]
[1742315916169,6.40678704,1891.7,1891.6,5.28652]
[1742315916170,0.39378743,1891.7,1891.6,5.28652]
[1742315916471,4.72585229,1891.7,1891.6,5.28652]
[1742315917767,0.8009,1891.6,1891.5,5.28664]
[1742315917963,4.72585229,1891.6,1891.5,5.28664]
[1742315921399,4.72585229,1891.6,1891.5,40.28664]
[1742315921697,4.72585229,1891.6,1891.5,44.926062]
[1742315922274,6.0098,1892.2,1892.0,5.28516]
[1742315922477,9.45170458,1892.1,1892.0,5.28541]
[1742315922800,4.72585229,1892.1,1892.0,5.28541]
[1742315923387,10.52526981,1892.1,1891.8,5.28587]
[1742315923696,4.72585229,1891.9,1891.7,5.28614]
[1742315923890,4.72585229,1892.0,1891.8,5.28597]
[1742315924064,1.07356523,1892.1,1891.9,5.28551]
[1742315924496,1.07356523,1892.1,1891.9,10.57103]
[1742315924694,1.07356523,1892.1,1891.9,5.2855]
[1742315924902,6.0098,1892.2,1891.9,5.2855]
[1742315924903,4.72585229,1892.0,1891.9,5.2855]
[1742315925303,9.45170458,1892.0,1891.9,5.2855]
[1742315926291,6.63085646,1892.0,1891.7,5.28623]
[1742315926493,3.31542823,1891.8,1891.7,5.28623]
[1742315926794,3.31542823,1891.8,1891.5,10.57333]
[1742315927103,3.31542823,1891.6,1891.5,10.57333]
[1742315929113,3.31542823,1891.6,1891.5,5.28664]
[1742315929910,4.09862823,1891.6,1891.4,5.28707]
[1742315930220,4.09862823,1891.6,1891.4,5.28694]
[1742315930394,0.40986282,1891.5,1891.4,5.28694]
[1742315930905,3.72529105,1891.5,1891.4,5.28694]
[1742315932319,3.31542823,1891.5,1891.4,5.28694]
[1742315933626,3.31542823,1891.5,1891.4,5.28708]
[1742315934960,4.10472823,1891.5,1891.4,5.28708]
[1742315935459,3.31542823,1891.5,1891.4,5.28708]
[1742315938150,3.31542823,1891.5,1891.3,5.28721]
[1742315938354,0.33154282,1891.4,1891.3,5.28721]
[1742315938526,6.07556,1891.7,1891.5,5.28674]
[1742315938527,0.7893,1891.7,1891.5,5.28674]
[1742315938732,3.31542823,1891.6,1891.4,5.28708]
[1742315939846,8.60195823,1891.6,1891.2,5.28759]
[1742315940048,5.28782,1891.2,1890.8,5.28871]
[1742315940254,3.31542823,1890.9,1890.8,5.28871]
[1742315941566,3.72438105,1890.9,1890.7,10.5778]
[1742315941761,3.72438105,1890.9,1890.8,5.28876]
[1742315942064,4.12589836,1890.9,1890.8,5.28876]
[1742315942860,3.71694554,1890.9,1890.8,5.28876]
[1742315943233,3.51341938,1890.9,1890.8,5.28876]
[1742315944234,3.51341938,1890.9,1890.7,5.28888]
[1742315944235,6.61532145,1890.9,1890.7,5.28888]
[1742315944463,6.61532145,1890.9,1890.7,10.57777]
[1742315944662,6.61532145,1890.9,1890.6,5.2893]
[1742315944870,3.11190207,1890.7,1890.5,5.28959]
[1742315945064,3.11190207,1890.6,1890.5,10.57904]
[1742315946137,9.12870207,1890.6,1890.3,5.29005]
[1742315946337,3.11190207,1890.4,1890.3,5.29016]
[1742315947646,3.50168808,1890.4,1890.3,5.29016]
[1742315948065,3.85185689,1890.4,1890.2,5.29025]
[1742315948272,0.7902,1890.3,1890.0,5.2908]
[1742315948471,3.11190207,1890.1,1890.0,5.2908]
[1742315948869,3.11190207,1890.1,1889.9,5.29117]
[1742315949438,3.11190207,1890.1,1889.9,5.29111]
[1742315949640,3.11190207,1890.1,1890.0,5.291]
[1742315950038,3.94249228,1890.1,1889.9,5.29111]
[1742315950239,3.94249228,1890.1,1889.9,5.29118]
[1742315950655,3.11190207,1890.0,1889.8,10.59798]
[1742315950872,3.90750207,1890.0,1889.8,5.30645]
[1742315951068,3.90750207,1890.0,1889.8,0.015]
[1742315951069,9.98356151,1890.0,1889.8,0.015]
[1742315951273,9.98359151,1890.0,1889.8,0.015]
[1742315951472,0.55,1889.9,1889.8,0.015]
[1742315951675,3.91010207,1889.8,1889.7,0.1118572]
[1742315951839,10.08025328,1889.8,1889.7,0.0618572]
[1742315952186,10.08025328,1889.8,1889.7,5.3536972]
[1742315954540,3.50686927,1889.8,1889.7,5.3536972]
[1742315955895,4.30506927,1889.8,1889.7,0.0618572]
[1742315956473,3.50686927,1889.8,1889.7,5.3536972]
[1742315956852,8.70286927,1889.8,1889.7,5.3536972]
[1742315957576,9.52206927,1889.8,1889.7,5.3536972]
[1742315957741,8.70286927,1889.8,1889.7,5.3536972]
[1742315958142,3.50686927,1889.8,1889.7,5.3536972]
[1742315958346,3.11190207,1889.8,1889.7,6.41825892]
[1742315958880,3.11190207,1889.8,1889.7,6.99515892]
[1742315959582,3.11190207,1889.8,1889.7,6.24325892]
[1742315959789,3.11190207,1889.8,1889.7,5.1786972]
[1742315960457,5.197,1890.2,1890.1,5.29072]
[1742315961058,0.785,1890.4,1890.3,5.29016]
[1742315961254,0.8174,1890.6,1890.4,5.28976]
[1742315961577,1.3674,1890.6,1890.5,5.28946]
[1742315961777,4.47930207,1890.6,1890.5,5.28946]
[1742315961975,3.11190207,1890.6,1890.5,5.28946]
[1742315962287,8.71261658,1890.6,1890.5,5.28946]
[1742315963261,3.11190207,1890.6,1890.5,5.28946]
[1742315965292,3.11190207,1890.6,1890.5,6.09626]
[1742315965484,3.11190207,1890.6,1890.5,7.234862]
[1742315966970,3.11190207,1890.8,1890.7,5.28904]
[1742315968191,3.11153681,1890.8,1890.7,5.28904]
[1742315970307,3.11202572,1890.8,1890.7,10.57808]
[1742315970512,3.46385162,1890.8,1890.7,5.28904]
[1742315970972,3.46385162,1890.8,1890.6,5.28906]
[1742315971169,3.46385162,1890.8,1890.6,10.57827]
[1742315971368,3.46385162,1890.8,1890.7,5.28904]
[1742315972265,3.46385162,1890.8,1890.5,5.28959]
[1742315972465,3.11202572,1890.6,1890.5,5.28959]
[1742315974994,9.09672572,1890.6,1890.3,5.29009]
[1742315975298,3.11202572,1890.4,1890.3,5.29016]